[Event "Budapest Chess Festival 2024"]
[Site "Budapest"]
[Date "2024.05.27"]
[Round "5.19"]
[White "Juhasz, Agoston"]
[Black "Sahib Singh"]
[Result "1-0"]
[ECO "B90"]
[WhiteElo "2431"]
[BlackElo "2291"]
[Annotator "RC"]
[PlyCount "163"]
[EventDate "2024.05.20"]
[EventType "swiss"]
[EventCountry "HUN"]
[SourceTitle "playchess.com"]
[Source "ChessBase"]
[SourceQuality "1"]
[TimeControl "40/5400+30:1800+30"]

1. e4 {[%emt 0:00:32]} c5 {[%emt 0:02:40]} 2. Nf3 {[%emt 0:00:11]} d6 {[%emt 0:00:03]} 3. d4 {[%emt 0:00:34]} cxd4 {[%emt 0:00:05]} 4. Nxd4 {[%emt 0:00:03]} Nf6 {[%emt 0:00:06]} 5. Nc3 {[%emt 0:00:05]} a6 {[%emt 0:00:04]} 6. h3 {[%emt 0:01:00]} g6 {[%emt 0:01:15]} 7. Be3 {[%emt 0:01:24]} Bg7 {[%emt 0:01:25]} 8. Qd2 {[%emt 0:01:12]} O-O {[%emt 0:01:40]} 9. O-O-O {[%emt 0:01:13]} b5 {[%emt 0:01:04]} 10. a3 {[%emt 0:04:15]} Bb7 {[%emt 0:00:10]} 11. f3 {[%emt 0:01:58]} Nc6 {[%emt 0:06:50]} 12. Kb1 {[%emt 0:03:10]} Rc8 {[%emt 0:06:09]} 13. g4 {[%emt 0:05:44]} Ne5 {[%emt 0:03:10]} 14. Be2 {[%emt 0:08:25]} Nc4 {[%emt 0:05:05]} 15. Bxc4 {[%emt 0:00:10]} Rxc4 {[%emt 0:00:07]} 16. Nde2 {[%emt 0:17:35]} Nd7 {[%emt 0:12:26]} 17. Bh6 {[%emt 0:07:10]} Ne5 {[%emt 0:01:16]} 18. Bxg7 {[%emt 0:01:41]} Kxg7 {[%emt 0:00:14]} 19. f4 {[%emt 0:10:08]} Nd7 {[%emt 0:02:13]} 20. b3 {[%emt 0:00:29]} Rc8 {[%emt 0:06:53]} 21. h4 {[%emt 0:00:29]} Qb6 {[%emt 0:02:31]} 22. h5 {[%emt 0:07:09]} Nf6 {[%emt 0:00:47]} 23. Ng3 {[%emt 0:06:52]} Nxg4 {[%emt 0:03:48]} 24. Rdg1 {[%emt 0:02:40]} f5 {[%emt 0:20:05]} 25. Nge2 {[%emt 0:08:10]} Qe3 {[%emt 0:01:15]} 26. Qxe3 {[%emt 0:01:39]} Nxe3 {[%emt 0:00:02]} 27. hxg6 {[%emt 0:04:54]} hxg6 {[%emt 0:00:20]} 28. Rh3 {[%emt 0:00:34]} Ng4 {[%emt 0:00:08]} 29. Nd4 {[%emt 0:01:06]} Kf6 {[%emt 0:05:05]} 30. exf5 {[%emt 0:01:34]} gxf5 {[%emt 0:01:31]} 31. Rh5 {[%emt 0:01:16]} e6 {[%emt 0:00:26]} 32. Re1 {[%emt 0:00:19]} Rfe8 {[%emt 0:02:11]} 33. Kb2 {[%emt 0:00:54]} Kg6 {[%emt 0:06:17]} 34. Rg5+ {[%emt 0:00:46]} Kf7 {[%emt 0:00:07]} 35. Rh5 {[%emt 0:00:51]} Nf6 {[%emt 0:01:19]} 36. Rh6 {[%emt 0:00:05]} Re7 {[%emt 0:00:33]} 37. Rg1 {[%emt 0:00:44]} Rce8 {[%emt 0:04:16]} 38. Rg5 {[%emt 0:01:00]} Bc8 {[%emt 0:00:57]} 39. Nce2 {[%emt 0:01:20]} Rf8 {[%emt 0:02:49]} 40. Nc6 {[%emt 0:00:00]} Ree8 {[%emt 0:00:00]} 41. Ne5+ {[%emt 0:06:17]} dxe5 {[%emt 0:00:56]} 42. fxe5 {[%emt 0:00:03]} Ke7 {[%emt 0:00:44]} 43. Rg7+ {[%emt 0:04:55]} Kd8 {[%emt 0:00:05]} 44. exf6 {[%emt 0:03:16]} e5 {[%emt 0:00:05]} 45. Rh1 {[%emt 0:03:25]} Be6 {[%emt 0:01:05]} 46. Rd1+ {[%emt 0:01:07]} Kc8 {[%emt 0:00:01]} 47. Rd6 {[%emt 0:00:24]} Bf7 {[%emt 0:02:47]} 48. Ng3 {[%emt 0:01:16]} f4 {[%emt 0:00:25]} 49. Ne4 {[%emt 0:00:44]} Rd8 {[%emt 0:08:23]} 50. Rxa6 {[%emt 0:00:58]} f3 {[%emt 0:00:39]} 51. Rg5 {[%emt 0:06:09]} Rde8 {[%emt 0:09:01]} 52. Rd6 {[%emt 0:02:35]} Rg8 {[%emt 0:07:16]} 53. Rf5 {[%emt 0:01:22]} Rg4 {[%emt 0:00:13]} 54. Nf2 {[%emt 0:01:25]} Rg3 {[%emt 0:01:41]} 55. Rd3 {[%emt 0:00:46]} e4 {[%emt 0:00:06]} 56. Re3 {[%emt 0:00:23]} Bg6 {[%emt 0:01:57]} 57. Rf4 {[%emt 0:00:23]} Rg2 {[%emt 0:01:17]} 58. Nxe4 {[%emt 0:00:57]} Re2 {[%emt 0:00:33]} 59. Rc3+ {[%emt 0:02:13]} Kb8 {[%emt 0:00:39]} 60. Ng3 {[%emt 0:00:30]} Rg2 {[%emt 0:02:02]} 61. Rfxf3 {[%emt 0:00:24]} Rc8 {[%emt 0:00:05]} 62. Rxc8+ {[%emt 0:00:36]} Kxc8 {[%emt 0:00:03]} 63. Nf5 {[%emt 0:00:21]} Kd8 {[%emt 0:01:45]} 64. Ne3 {[%emt 0:00:49]} Re2 {[%emt 0:00:04]} 65. f7 {[%emt 0:00:28]} Bxf7 {[%emt 0:00:04]} 66. Rxf7 {[%emt 0:00:06]} Rxe3 {[%emt 0:00:05]} 67. Rf5 {[%emt 0:00:08]} b4 {[%emt 0:00:03]} 68. axb4 {[%emt 0:00:04]} Kc7 {[%emt 0:00:05]} 69. Ka3 {[%emt 0:00:43]} Kb6 {[%emt 0:00:23]} 70. Rf6+ {[%emt 0:00:09]} Kb7 {[%emt 0:00:04]} 71. Ka4 {[%emt 0:00:07]} Re5 {[%emt 0:00:04]} 72. c4 {[%emt 0:00:05]} Rg5 {[%emt 0:00:07]} 73. b5 {[%emt 0:00:04]} Rg4 {[%emt 0:00:16]} 74. Ka5 {[%emt 0:00:06]} Rg7 {[%emt 0:00:04]} 75. c5 {[%emt 0:00:10]} Rg3 {[%emt 0:00:47]} 76. Rf7+ {[%emt 0:00:06]} Ka8 {[%emt 0:00:06]} 77. Kb6 {[%emt 0:00:49]} Rg8 {[%emt 0:00:20]} 78. Ra7+ {[%emt 0:00:31]} Kb8 {[%emt 0:00:04]} 79. c6 {[%emt 0:00:04]} Rg6 {[%emt 0:00:06]} 80. Re7 {[%emt 0:00:23]} Rg8 {[%emt 0:00:04]} 81. Rb7+ {[%emt 0:00:08]} Kc8 {[%emt 0:00:06]} 82. Ra7 {[%emt 0:00:05]} 1-0

[Event "Budapest Chess Festival 2024"]
[Site "Budapest"]
[Date "2024.05.27"]
[Round "5.20"]
[White "Citak, Selim"]
[Black "Willow, Jonah B"]
[Result "1/2-1/2"]
[ECO "E32"]
[WhiteElo "2327"]
[BlackElo "2417"]
[Annotator "RC"]
[PlyCount "147"]
[EventDate "2024.05.20"]
[EventType "swiss"]
[EventCountry "HUN"]
[SourceTitle "playchess.com"]
[Source "ChessBase"]
[SourceQuality "1"]
[TimeControl "40/5400+30:1800+30"]

1. d4 {[%emt 0:00:32]} Nf6 {[%emt 0:08:00]} 2. c4 {[%emt 0:00:10]} e6 {[%emt 0:00:28]} 3. Nc3 {[%emt 0:00:36]} Bb4 {[%emt 0:00:10]} 4. Qc2 {[%emt 0:00:44]} b6 {[%emt 0:00:26]} 5. a3 {[%emt 0:01:05]} Bxc3+ {[%emt 0:00:26]} 6. Qxc3 {[%emt 0:00:14]} a5 {[%emt 0:02:07]} 7. b3 {[%emt 0:01:45]} O-O {[%emt 0:01:12]} 8. Nf3 {[%emt 0:00:21]} Bb7 {[%emt 0:01:15]} 9. e3 {[%emt 0:00:36]} Ne4 {[%emt 0:00:16]} 10. Qc2 {[%emt 0:00:19]} d6 {[%emt 0:01:31]} 11. Be2 {[%emt 0:00:37]} f5 {[%emt 0:01:35]} 12. Bb2 {[%emt 0:01:51]} Nd7 {[%emt 0:03:19]} 13. O-O {[%emt 0:00:39]} Qe8 {[%emt 0:11:25]} 14. Rad1 {[%emt 0:06:37]} Qg6 {[%emt 0:04:09]} 15. d5 {[%emt 0:01:59]} e5 {[%emt 0:01:09]} 16. Nd2 {[%emt 0:03:45]} Nxd2 {[%emt 0:06:42]} 17. Rxd2 {[%emt 0:01:03]} Qh6 {[%emt 0:05:36]} 18. f4 {[%emt 0:05:13]} Rae8 {[%emt 0:07:27]} 19. Bd3 {[%emt 0:03:51]} g6 {[%emt 0:08:44]} 20. Rdf2 {[%emt 0:03:45]} Nf6 {[%emt 0:03:51]} 21. h3 {[%emt 0:01:33]} Nh5 {[%emt 0:03:53]} 22. Kh2 {[%emt 0:03:41]} Bc8 {[%emt 0:00:10]} 23. Qd2 {[%emt 0:02:30]} Nf6 {[%emt 0:01:30]} 24. Kg1 {[%emt 0:00:56]} Qh4 {[%emt 0:00:14]} 25. Bc2 {[%emt 0:06:10]} Rf7 {[%emt 0:06:09]} 26. b4 {[%emt 0:06:09]} Ba6 {[%emt 0:01:59]} 27. b5 {[%emt 0:05:23]} Bc8 {[%emt 0:01:34]} 28. a4 {[%emt 0:00:54]} Nd7 {[%emt 0:01:01]} 29. Kh2 {[%emt 0:01:17]} Qh6 {[%emt 0:01:40]} 30. Rf3 {[%emt 0:04:53]} Rfe7 {[%emt 0:00:27]} 31. Rg3 {[%emt 0:06:01]} Nc5 {[%emt 0:03:44]} 32. Qc3 {[%emt 0:04:23]} Qg7 {[%emt 0:01:50]} 33. Qd2 {[%emt 0:02:53]} Qh6 {[%emt 0:01:38]} 34. Qc3 {[%emt 0:00:35]} Qg7 {[%emt 0:00:35]} 35. Qd2 {[%emt 0:00:42]} Qf6 {[%emt 0:01:40]} 36. Qc3 {[%emt 0:00:53]} Nd7 {[%emt 0:01:26]} 37. Qd2 {[%emt 0:06:15]} Nc5 {[%emt 0:00:37]} 38. Qc3 {[%emt 0:00:41]} Nd7 {[%emt 0:01:07]} 39. Qd2 {[%emt 0:00:05]} Qf8 {[%emt 0:01:58]} 40. Qc3 {[%emt 0:00:00]} Rf7 {[%emt 0:00:00]} 41. Rg5 {[%emt 0:07:32]} Qg7 {[%emt 0:04:10]} 42. Qd2 {[%emt 0:01:34]} Qh6 {[%emt 0:02:36]} 43. Rf3 {[%emt 0:05:58]} Nf6 {[%emt 0:02:27]} 44. Qc3 {[%emt 0:03:06]} Qh4 {[%emt 0:03:52]} 45. Rgg3 {[%emt 0:02:11]} Rfe7 {[%emt 0:02:41]} 46. Ba1 {[%emt 0:05:56]} Kf7 {[%emt 0:02:29]} 47. Bb2 {[%emt 0:06:04]} Rg8 {[%emt 0:06:38]} 48. fxe5 {[%emt 0:01:46]} Rxe5 {[%emt 0:01:01]} 49. Rf4 {[%emt 0:01:15]} Qh6 {[%emt 0:00:29]} 50. Qd2 {[%emt 0:00:43]} Nh5 {[%emt 0:00:42]} 51. Rgf3 {[%emt 0:01:09]} Nxf4 {[%emt 0:01:28]} 52. Bxe5 {[%emt 0:01:51]} dxe5 {[%emt 0:00:54]} 53. exf4 {[%emt 0:00:03]} e4 {[%emt 0:02:38]} 54. Rc3 {[%emt 0:00:18]} Qf8 {[%emt 0:01:40]} 55. c5 {[%emt 0:00:43]} bxc5 {[%emt 0:00:10]} 56. Qe3 {[%emt 0:01:36]} Qd6 {[%emt 0:00:12]} 57. g3 {[%emt 0:00:49]} Bd7 {[%emt 0:02:09]} 58. Rxc5 {[%emt 0:00:48]} g5 {[%emt 0:02:00]} 59. fxg5 {[%emt 0:04:33]} Rxg5 {[%emt 0:00:02]} 60. Bb3 {[%emt 0:03:15]} h6 {[%emt 0:01:55]} 61. Rxc7 {[%emt 0:00:20]} Ke8 {[%emt 0:01:29]} 62. b6 {[%emt 0:00:29]} Kd8 {[%emt 0:02:07]} 63. Qc3 {[%emt 0:02:12]} Qxb6 {[%emt 0:00:44]} 64. Rc5 {[%emt 0:00:36]} Rg6 {[%emt 0:02:52]} 65. Qxa5 {[%emt 0:01:52]} Qxa5 {[%emt 0:00:25]} 66. Rxa5 {[%emt 0:00:01]} Rb6 {[%emt 0:00:20]} 67. Bc4 {[%emt 0:00:17]} Rb2+ {[%emt 0:01:36]} 68. Kg1 {[%emt 0:00:06]} Rb4 {[%emt 0:00:36]} 69. Bb5 {[%emt 0:01:08]} Bxb5 {[%emt 0:00:48]} 70. Rxb5 {[%emt 0:00:12]} Rxa4 {[%emt 0:00:03]} 71. d6 {[%emt 0:00:51]} Ra1+ {[%emt 0:00:20]} 72. Kf2 {[%emt 0:00:09]} Ra2+ {[%emt 0:00:07]} 73. Kf1 {[%emt 0:01:32]} Ra3 {[%emt 0:00:41]} 74. Rxf5 {[%emt 0:00:29]} 1/2-1/2

[Event "Budapest Chess Festival 2024"]
[Site "Budapest"]
[Date "2024.05.28"]
[Round "6.1"]
[White "Ivanisevic, Ivan"]
[Black "Nasuta, Grzegorz"]
[Result "1/2-1/2"]
[ECO "D10"]
[WhiteElo "2537"]
[BlackElo "2547"]
[Annotator "RC"]
[PlyCount "114"]
[EventDate "2024.05.20"]
[EventType "swiss"]
[EventCountry "HUN"]
[SourceTitle "playchess.com"]
[Source "ChessBase"]
[SourceQuality "1"]
[TimeControl "40/5400+30:1800+30"]

1. d4 {[%emt 0:06:30]} d5 {[%emt 0:00:36]} 2. c4 {[%emt 0:00:18]} c6 {[%emt 0:00:05]} 3. Nc3 {[%emt 0:00:05]} Nf6 {[%emt 0:00:06]} 4. e3 {[%emt 0:00:04]} e6 {[%emt 0:00:08]} 5. Bd3 {[%emt 0:00:06]} Nbd7 {[%emt 0:02:34]} 6. b3 {[%emt 0:00:11]} e5 {[%emt 0:05:59]} 7. Nge2 {[%emt 0:03:00]} e4 {[%emt 0:09:35]} 8. Bc2 {[%emt 0:00:10]} Bd6 {[%emt 0:00:04]} 9. f3 {[%emt 0:00:06]} exf3 {[%emt 0:10:28]} 10. gxf3 {[%emt 0:00:06]} O-O {[%emt 0:00:07]} 11. O-O {[%emt 0:02:22]} Nh5 {[%emt 0:17:35]} 12. Qe1 {[%emt 0:06:25]} dxc4 {[%emt 0:09:15]} 13. bxc4 {[%emt 0:15:50]} c5 {[%emt 0:06:06]} 14. Ne4 {[%emt 0:03:32]} Be7 {[%emt 0:01:00]} 15. Bb2 {[%emt 0:00:32]} f5 {[%emt 0:17:49]} 16. N4g3 {[%emt 0:00:44]} Nxg3 {[%emt 0:00:44]} 17. hxg3 {[%emt 0:01:25]} Nb6 {[%emt 0:01:22]} 18. Nf4 {[%emt 0:07:43]} Nxc4 {[%emt 0:09:34]} 19. Bb3 {[%emt 0:00:05]} b5 {[%emt 0:00:06]} 20. Rc1 {[%emt 0:01:00]} Kh8 {[%emt 0:03:39]} 21. Bxc4 {[%emt 0:17:04]} bxc4 {[%emt 0:00:05]} 22. dxc5 {[%emt 0:00:28]} Bf6 {[%emt 0:00:34]} 23. Rd1 {[%emt 0:00:41]} Qe8 {[%emt 0:01:24]} 24. Bxf6 {[%emt 0:02:26]} Rxf6 {[%emt 0:00:01]} 25. Qc3 {[%emt 0:00:08]} Bb7 {[%emt 0:00:18]} 26. Kg2 {[%emt 0:13:50]} Rc8 {[%emt 0:00:06]} 27. Rd6 {[%emt 0:00:06]} Rxd6 {[%emt 0:03:27]} 28. cxd6 {[%emt 0:00:06]} Kg8 {[%emt 0:00:06]} 29. Rd1 {[%emt 0:01:22]} Qc6 {[%emt 0:00:16]} 30. Rd5 {[%emt 0:00:16]} Qd7 {[%emt 0:00:53]} 31. Rd4 {[%emt 0:12:20]} Kf8 {[%emt 0:01:19]} 32. Rxc4 {[%emt 0:01:34]} Rxc4 {[%emt 0:00:12]} 33. Qxc4 {[%emt 0:00:05]} Qxd6 {[%emt 0:00:20]} 34. Ne6+ {[%emt 0:00:08]} Ke7 {[%emt 0:00:57]} 35. Nxg7 {[%emt 0:05:12]} Qd2+ {[%emt 0:00:08]} 36. Kh3 {[%emt 0:00:02]} Bxf3 {[%emt 0:00:39]} 37. Nxf5+ {[%emt 0:01:11]} Kf6 {[%emt 0:00:02]} 38. Nh4 {[%emt 0:01:18]} Qxe3 {[%emt 0:01:17]} 39. Qf1 {[%emt 0:00:10]} Qe6+ {[%emt 0:00:09]} 40. Kh2 {[%emt 0:00:00]} Qe2+ {[%emt 0:00:00]} 41. Kg1 {[%emt 0:02:30]} Qxf1+ {[%emt 0:03:26]} 42. Kxf1 {[%emt 0:01:23]} Bd5 {[%emt 0:00:46]} 43. a3 {[%emt 0:01:10]} Ke5 {[%emt 0:00:31]} 44. Ke2 {[%emt 0:00:45]} Kd4 {[%emt 0:00:50]} 45. Nf5+ {[%emt 0:00:48]} Kc3 {[%emt 0:00:39]} 46. Ke3 {[%emt 0:00:41]} a6 {[%emt 0:06:48]} 47. Ne7 {[%emt 0:01:27]} Bf7 {[%emt 0:08:25]} 48. Nc6 {[%emt 0:14:04]} Be8 {[%emt 0:10:11]} 49. Ne5 {[%emt 0:00:58]} a5 {[%emt 0:01:20]} 50. g4 {[%emt 0:01:17]} Kb3 {[%emt 0:01:04]} 51. Kd4 {[%emt 0:00:40]} Kxa3 {[%emt 0:00:20]} 52. Kc3 {[%emt 0:00:05]} h6 {[%emt 0:02:07]} 53. Nc4+ {[%emt 0:03:08]} Ka4 {[%emt 0:00:03]} 54. Nd6 {[%emt 0:00:06]} Bd7 {[%emt 0:01:14]} 55. Nf7 {[%emt 0:00:19]} Bxg4 {[%emt 0:00:15]} 56. Nxh6 {[%emt 0:00:04]} Be6 {[%emt 0:00:06]} 57. Kb2 {[%emt 0:00:02]} Kb4 {[%emt 0:00:04]} 1/2-1/2

[Event "Budapest Chess Festival 2024"]
[Site "Budapest"]
[Date "2024.05.28"]
[Round "6.2"]
[White "Aryan Chopra"]
[Black "Costa, Leonardo"]
[Result "1/2-1/2"]
[ECO "C45"]
[WhiteElo "2641"]
[BlackElo "2486"]
[Annotator "TA"]
[PlyCount "62"]
[EventDate "2024.05.20"]
[EventType "swiss"]
[EventCountry "HUN"]
[SourceTitle "playchess.com"]
[Source "ChessBase"]
[SourceQuality "1"]
[TimeControl "40/5400+30:1800+30"]

{[%evp 14,62,-23,-13,-27,-19,-18,-18,-26,-27,-22,-16,-32,-20,-21,-42,-41,-43,-36,-39,-39,-6,0,0,0,0,0,-58,0,0,0,0,0,0,0,0,0,-41,45,0,0,-12,0,0,0,0,0,0,0,0,0]} 1. e4 {[%emt 0:04:56]} e5 {[%emt 0:00:35]} 2. Nf3 {[%emt 0:00:06]} Nc6 {[%emt 0:00:04]} 3. d4 {[%emt 0:00:14]} exd4 {[%emt 0:00:06]} 4. Nxd4 {[%emt 0:00:03]} Nf6 {[%emt 0:00:05][%cal Bg8f6,Bf6d5,Bd5b4][%mdl 32]} 5. Nxc6 {[%emt 0:00:09]} bxc6 {[%emt 0:00:05]} 6. e5 {[%emt 0:00:05]} Qe7 {[%emt 0:00:03]} 7. Qe2 {[%emt 0:00:04]} Nd5 {[%emt 0:00:03]} 8. h4 {[%emt 0:00:05]} Qe6 {[%emt 0:00:15]} 9. Nd2 {[%emt 0:00:32]} a5 {[%emt 0:00:45]} 10. g3 {[%emt 0:00:53]} Nb4 {[%emt 0:01:17][%csl LRa2,LRc2]} 11. Nf3 {[%emt 0:00:50]} Ba6 {[%emt 0:01:34]} 12. c4 $1 {[%emt 0:01:33]} Qg6 {[%emt 0:00:04]} 13. Kd1 {[%emt 0:00:11] Prevents Nc2. aiming for a3.} c5 $1 {[%emt 0:01:43]} 14. a3 {[%emt 0:00:23]} Nc6 {[%emt 0:00:03]} 15. h5 {[%emt 0:00:12]} Qe6 {[%emt 0:00:08]} 16. Bd2 {[%emt 0:00:27]} Be7 {[%emt 0:00:04] Against Rh4} 17. Bc3 {[%emt 0:00:12]} Rb8 {[%emt 0:18:16]} 18. h6 {[%emt 0:39:09]} g5 {[%emt 0:14:46]} 19. Rh5 {[%emt 0:04:55]} Rg8 {[%emt 0:01:37]} 20. Rc1 {[%emt 0:10:10]} (20. Qd3 $11) 20... g4 {[%emt 0:08:05]} ({Black should try} 20... Rg6 $15) 21. Nd2 $11 {[%emt 0:08:23]} Rg5 {[%emt 0:08:08]} 22. Rxg5 {[%emt 0:02:29]} Bxg5 {[%emt 0:00:05]} 23. Rc2 {[%emt 0:07:28]} Nd4 {[%emt 0:03:38]} 24. Bxd4 {[%emt 0:00:08]} cxd4 {[%emt 0:00:03]} 25. Qe4 {[%emt 0:03:25][%csl LRd4,LRh7]} Qxh6 {[%emt 0:13:26]} (25... Bxh6 $15 26. Qxh7 Qg6 27. Qxg6 fxg6) 26. Qxg4 {[%emt 0:01:38]} Bxd2 $1 {[%emt 0:00:15] The position is equal.} 27. Qg8+ {[%emt 0:09:12]} Ke7 {[%emt 0:11:26]} 28. Qxb8 {[%emt 0:00:05]} Qh1 {[%emt 0:00:02] Prevents Qa8.} 29. Kxd2 {[%emt 0:01:42]} Qxf1 {[%emt 0:00:05]} 30. Qxc7 {[%emt 0:02:03]} Qxf2+ {[%emt 0:00:05]} 31. Kd1 {[%emt 0:00:03]} Qf1+ {[%emt 0:00:07] Weighted Error Value: White=0.08 (flawless) /Black=0.10 (very precise) .  Mistake:       	White=1     	Black=2      Inaccurate:     	White=2     	---        OK:         	White=15    	Black=12     Best:        	White=1     	Black=1      Strong:       	White=1     	Black=2} 1/2-1/2

[Event "Budapest Chess Festival 2024"]
[Site "Budapest"]
[Date "2024.05.28"]
[Round "6.3"]
[White "Shohat, Yotam"]
[Black "Onyshchuk, Volodymyr"]
[Result "0-1"]
[ECO "C67"]
[WhiteElo "2410"]
[BlackElo "2619"]
[Annotator "RC"]
[PlyCount "198"]
[EventDate "2024.05.20"]
[EventType "swiss"]
[EventCountry "HUN"]
[SourceTitle "playchess.com"]
[Source "ChessBase"]
[SourceQuality "1"]
[TimeControl "40/5400+30:1800+30"]

1. e4 {[%emt 0:00:33]} e5 {[%emt 0:01:01]} 2. Nf3 {[%emt 0:00:05]} Nc6 {[%emt 0:00:08]} 3. Bb5 {[%emt 0:00:05]} Nf6 {[%emt 0:00:31]} 4. O-O {[%emt 0:00:06]} Nxe4 {[%emt 0:00:32]} 5. Re1 {[%emt 0:00:05]} Nd6 {[%emt 0:00:45]} 6. Nxe5 {[%emt 0:00:06]} Be7 {[%emt 0:00:09]} 7. Bf1 {[%emt 0:00:05]} Nf5 {[%emt 0:01:30]} 8. Nf3 {[%emt 0:00:44]} d5 {[%emt 0:00:45]} 9. d4 {[%emt 0:00:11]} O-O {[%emt 0:00:17]} 10. Nc3 {[%emt 0:01:54]} Bb4 {[%emt 0:12:33]} 11. a3 {[%emt 0:00:44]} Bxc3 {[%emt 0:00:26]} 12. bxc3 {[%emt 0:00:02]} Re8 {[%emt 0:16:23]} 13. Rxe8+ {[%emt 0:05:20]} Qxe8 {[%emt 0:02:38]} 14. Bf4 {[%emt 0:00:10]} Nd6 {[%emt 0:02:07]} 15. Bd3 {[%emt 0:13:26]} h6 {[%emt 0:06:35]} 16. h3 {[%emt 0:04:37]} Be6 {[%emt 0:02:27]} 17. Ne5 {[%emt 0:10:12]} Nxe5 {[%emt 0:07:17]} 18. dxe5 {[%emt 0:02:44]} Ne4 {[%emt 0:08:12]} 19. c4 {[%emt 0:01:32]} Nc3 {[%emt 0:04:10]} 20. Qe1 {[%emt 0:03:00]} dxc4 {[%emt 0:02:33]} 21. Qxc3 {[%emt 0:00:10]} cxd3 {[%emt 0:00:09]} 22. cxd3 {[%emt 0:00:47]} Qd7 {[%emt 0:08:28]} 23. Rc1 {[%emt 0:01:44]} c6 {[%emt 0:01:00]} 24. Be3 {[%emt 0:02:01]} Rd8 {[%emt 0:02:17]} 25. Bxa7 {[%emt 0:06:23]} Qxd3 {[%emt 0:00:06]} 26. Bb6 {[%emt 0:02:08]} Qxc3 {[%emt 0:05:36]} 27. Rxc3 {[%emt 0:00:03]} Rd1+ {[%emt 0:01:12]} 28. Kh2 {[%emt 0:00:04]} Rb1 {[%emt 0:00:23]} 29. Bc5 {[%emt 0:03:58]} b5 {[%emt 0:00:38]} 30. h4 {[%emt 0:13:18]} h5 {[%emt 0:04:16]} 31. Bd6 {[%emt 0:12:53]} Rb2 {[%emt 0:02:43]} 32. Kg3 {[%emt 0:04:01]} Bd5 {[%emt 0:00:34]} 33. Rd3 {[%emt 0:01:09]} Kh7 {[%emt 0:03:00]} 34. Rd4 {[%emt 0:03:19]} Ra2 {[%emt 0:00:43]} 35. Bb4 {[%emt 0:03:04]} Rc2 {[%emt 0:01:39]} 36. Bd6 {[%emt 0:01:47]} Be6 {[%emt 0:02:07]} 37. Rd1 {[%emt 0:02:14]} Kg6 {[%emt 0:01:20]} 38. f3 {[%emt 0:00:29]} Kf5 {[%emt 0:00:54]} 39. Rf1 {[%emt 0:01:47]} Bd5 {[%emt 0:01:00]} 40. Rf2 {[%emt 0:00:00]} Rc3 {[%emt 0:00:00]} 41. Rb2 {[%emt 0:07:01]} Bc4 {[%emt 0:07:35]} 42. Rd2 {[%emt 0:03:37]} Bd5 {[%emt 0:05:57]} 43. Bb4 {[%emt 0:02:51]} Rc4 {[%emt 0:01:29]} 44. Bd6 {[%emt 0:04:49]} Ke6 {[%emt 0:02:04]} 45. Rb2 {[%emt 0:02:29]} Kd7 {[%emt 0:02:57]} 46. Rb4 {[%emt 0:04:33]} Rc2 {[%emt 0:00:55]} 47. a4 {[%emt 0:01:39]} Bc4 {[%emt 0:00:13]} 48. axb5 {[%emt 0:00:07]} cxb5 {[%emt 0:00:19]} 49. Rb1 {[%emt 0:00:10]} Kc6 {[%emt 0:00:20]} 50. Kh3 {[%emt 0:02:46]} g6 {[%emt 0:01:21]} 51. Kg3 {[%emt 0:00:10]} Kb6 {[%emt 0:03:36]} 52. Bb4 {[%emt 0:01:29]} Re2 {[%emt 0:00:11]} 53. Bd6 {[%emt 0:00:14]} Ka5 {[%emt 0:01:06]} 54. Kh2 {[%emt 0:03:00]} Ba2 {[%emt 0:00:54]} 55. Rb4 {[%emt 0:00:53]} Rd2 {[%emt 0:02:33]} 56. Kg3 {[%emt 0:00:44]} Rc2 {[%emt 0:03:19]} 57. Be7 {[%emt 0:01:34]} Re2 {[%emt 0:01:16]} 58. Bd6 {[%emt 0:00:11]} Rd2 {[%emt 0:00:13]} 59. Be7 {[%emt 0:01:09]} Kb6 {[%emt 0:01:16]} 60. Bd6 {[%emt 0:00:50]} Kc6 {[%emt 0:00:25]} 61. Be7 {[%emt 0:01:27]} Bc4 {[%emt 0:01:35]} 62. Rb1 {[%emt 0:00:31]} Kd5 {[%emt 0:00:36]} 63. Bf6 {[%emt 0:00:58]} Bd3 {[%emt 0:00:34]} 64. Rb4 {[%emt 0:01:42]} Bf1 {[%emt 0:01:32]} 65. Kf4 {[%emt 0:00:12]} Rxg2 {[%emt 0:00:47]} 66. Rd4+ {[%emt 0:00:20]} Kc5 {[%emt 0:00:28]} 67. Rd7 {[%emt 0:00:50]} Bc4 {[%emt 0:00:07]} 68. Be7+ {[%emt 0:00:07]} Kc6 {[%emt 0:00:31]} 69. Rd6+ {[%emt 0:00:05]} Kc7 {[%emt 0:00:14]} 70. Rd4 {[%emt 0:01:02]} Be6 {[%emt 0:00:14]} 71. Rd3 {[%emt 0:00:51]} Rb2 {[%emt 0:00:57]} 72. Rd4 {[%emt 0:00:15]} Rf2 {[%emt 0:01:03]} 73. Ke3 {[%emt 0:00:16]} Rf1 {[%emt 0:00:05]} 74. Ke2 {[%emt 0:00:28]} Rh1 {[%emt 0:00:18]} 75. Kf2 {[%emt 0:00:24]} Kb6 {[%emt 0:00:22]} 76. Bb4 {[%emt 0:00:21]} Kb7 {[%emt 0:00:36]} 77. Be7 {[%emt 0:00:11]} Bc4 {[%emt 0:00:22]} 78. Rd7+ {[%emt 0:00:52]} Kc6 {[%emt 0:00:23]} 79. Rd6+ {[%emt 0:00:05]} Kc7 {[%emt 0:00:07]} 80. Rd4 {[%emt 0:00:05]} Rb1 {[%emt 0:00:13]} 81. Kg3 {[%emt 0:01:30]} Kb6 {[%emt 0:00:39]} 82. Kf4 {[%emt 0:01:05]} Ka5 {[%emt 0:00:32]} 83. Kg5 {[%emt 0:00:18]} Ka4 {[%emt 0:01:44]} 84. f4 {[%emt 0:00:06]} Rf1 {[%emt 0:00:34]} 85. Kh6 {[%emt 0:00:45]} Kb3 {[%emt 0:00:22]} 86. Kg7 {[%emt 0:00:39]} Kc3 {[%emt 0:00:41]} 87. Bc5 {[%emt 0:00:14]} b4 {[%emt 0:00:24]} 88. e6 {[%emt 0:00:29]} fxe6 {[%emt 0:00:11]} 89. Kxg6 {[%emt 0:00:08]} b3 {[%emt 0:00:17]} 90. Rd6 {[%emt 0:00:47]} Rxf4 {[%emt 0:00:11]} 91. Rb6 {[%emt 0:01:08]} Rxh4 {[%emt 0:00:17]} 92. Be7 {[%emt 0:00:17]} Rh1 {[%emt 0:00:34]} 93. Bf6+ {[%emt 0:00:05]} Kd3 {[%emt 0:00:11]} 94. Kg5 {[%emt 0:00:07]} h4 {[%emt 0:00:42]} 95. Kg4 {[%emt 0:00:03]} h3 {[%emt 0:00:23]} 96. Kg3 {[%emt 0:00:05]} Bd5 {[%emt 0:00:18]} 97. Rb4 {[%emt 0:00:13]} Rf1 {[%emt 0:00:35]} 98. Be5 {[%emt 0:00:15]} Rf3+ {[%emt 0:00:20]} 99. Kh2 {[%emt 0:00:01]} Re3 {[%emt 0:00:19]} 0-1